[Event "*** Titled Tuesday 3|2 Blitz"]
[Site "Chess.com"]
[Date "2016.06.07"]
[Round "7"]
[White "AndreyOstrovskiy"]
[Black "INbetweenMOVE"]
[Result "1-0"]
[WhiteElo "2443"]
[BlackElo "2325"]
[TimeControl "180+2"]
[EndTime "12:27:36 PDT"]
[Termination "AndreyOstrovskiy won on time"]

1. e4 {[%clk 0:03:01.9]} 1... e6 {[%clk 0:01:56.4]} 2. d4 {[%clk 0:03:01.3]}
2... d5 {[%clk 0:01:57.6]} 3. Nc3 {[%clk 0:03:02]} 3... Nf6 {[%clk 0:01:58.8]}
4. e5 {[%clk 0:03:03.1]} 4... Nfd7 {[%clk 0:02:00.2]} 5. f4 {[%clk 0:03:04.8]}
5... c5 {[%clk 0:02:01.7]} 6. Nf3 {[%clk 0:03:06.5]} 6... Be7 {[%clk 0:02:03.3]}
7. Be3 {[%clk 0:03:07.4]} 7... O-O {[%clk 0:02:04.6]} 8. Qd2 {[%clk 0:03:08.6]}
8... b6 {[%clk 0:02:06]} 9. Bd3 {[%clk 0:03:04.5]} 9... Ba6 {[%clk 0:02:07]} 10.
Bxa6 {[%clk 0:03:04.2]} 10... Nxa6 {[%clk 0:02:08.9]} 11. O-O {[%clk 0:03:03.7]}
11... f5 {[%clk 0:02:04.2]} 12. exf6 {[%clk 0:02:50.1]} 12... Nxf6 {[%clk
0:02:04.1]} 13. Ng5 {[%clk 0:02:45.8]} 13... Qd7 {[%clk 0:02:00.3]} 14. Qe2
{[%clk 0:02:43.9]} 14... Nc7 {[%clk 0:02:00.7]} 15. Rae1 {[%clk 0:02:38.8]}
15... Rae8 {[%clk 0:01:59.9]} 16. Nf3 {[%clk 0:02:33.2]} 16... Bd6 {[%clk
0:01:35.1]} 17. Ne5 {[%clk 0:02:31.5]} 17... Qc8 {[%clk 0:01:35.7]} 18. Qd1
{[%clk 0:02:20.4]} 18... Bxe5 {[%clk 0:01:28.3]} 19. fxe5 {[%clk 0:02:17.7]}
19... Nd7 {[%clk 0:01:29.5]} 20. Qg4 {[%clk 0:02:11.3]} 20... cxd4 {[%clk
0:01:25.3]} 21. Bxd4 {[%clk 0:02:03]} 21... Rxf1+ {[%clk 0:01:25]} 22. Rxf1
{[%clk 0:02:03.8]} 22... Rf8 {[%clk 0:01:26.1]} 23. Rf3 {[%clk 0:01:49.2]} 23...
Qe8 {[%clk 0:01:14.2]} 24. a4 {[%clk 0:01:45.7]} 24... Nb8 {[%clk 0:01:04.7]}
25. Rxf8+ {[%clk 0:01:39]} 25... Qxf8 {[%clk 0:01:06.6]} 26. Nb5 {[%clk
0:01:40.3]} 26... Nba6 {[%clk 0:00:41.1]} 27. c3 {[%clk 0:01:33.3]} 27... Qe7
{[%clk 0:00:19.2]} 28. Nxa7 {[%clk 0:01:24.7]} 28... Nc5 {[%clk 0:00:19.7]} 29.
Nb5 {[%clk 0:01:24.7]} 29... Nxa4 {[%clk 0:00:19.7]} 30. Nxc7 {[%clk 0:01:25.3]}
30... Qxc7 {[%clk 0:00:19.6]} 31. Qxe6+ {[%clk 0:01:26.1]} 31... Kf8 {[%clk
0:00:21.3]} 32. Qxd5 {[%clk 0:01:12]} 32... Nxb2 {[%clk 0:00:20.4]} 33. e6
{[%clk 0:01:12.9]} 33... Nc4 {[%clk 0:00:20.4]} 34. Qe4 {[%clk 0:00:48.6]} 34...
Nd6 {[%clk 0:00:18.7]} 35. Qxh7 {[%clk 0:00:48.4]} 35... Ne8 {[%clk 0:00:12.1]}
36. Qf5+ {[%clk 0:00:35.8]} 36... Kg8 {[%clk 0:00:13.5]} 37. h4 {[%clk
0:00:34.7]} 37... Nd6 {[%clk 0:00:11.1]} 38. Qg6 {[%clk 0:00:33.5]} 38... Qe7
{[%clk 0:00:06.7]} 39. h5 {[%clk 0:00:33.9]} 39... Kf8 {[%clk 0:00:04.6]} 40.
Bxb6 {[%clk 0:00:29.1]} 40... Qh4 {[%clk 0:00:04]} 41. Bf2 {[%clk 0:00:24.8]}
1-0

[Event "*** Titled Tuesday 3|2 Blitz"]
[Site "Chess.com"]
[Date "2016.06.07"]
[Round "7"]
[White "Abdodi"]
[Black "Ksenia_Legenko"]
[Result "0-1"]
[WhiteElo "1985"]
[BlackElo "2040"]
[TimeControl "180+2"]
[EndTime "12:28:18 PDT"]
[Termination "Ksenia_Legenko won by resignation"]

1. d4 {[%clk 0:03:00]} 1... d5 {[%clk 0:02:59.4]} 2. c4 {[%clk 0:03:00.4]} 2...
dxc4 {[%clk 0:03:00]} 3. e3 {[%clk 0:03:00.8]} 3... Nf6 {[%clk 0:03:00.3]} 4.
Bxc4 {[%clk 0:03:01.1]} 4... e6 {[%clk 0:03:01.7]} 5. Ne2 {[%clk 0:03:01.7]}
5... a6 {[%clk 0:02:59.3]} 6. O-O {[%clk 0:03:02.1]} 6... b5 {[%clk 0:03:00]} 7.
Bb3 {[%clk 0:03:03.2]} 7... Bb7 {[%clk 0:03:00.8]} 8. Nbc3 {[%clk 0:03:03.6]}
8... Nbd7 {[%clk 0:03:01.1]} 9. Nf4 {[%clk 0:03:03.4]} 9... Bd6 {[%clk
0:02:52.2]} 10. d5 {[%clk 0:03:02]} 10... exd5 {[%clk 0:02:45.2]} 11. Nfxd5
{[%clk 0:02:59.9]} 11... Nxd5 {[%clk 0:02:45.7]} 12. Bxd5 {[%clk 0:02:57.3]}
12... Bxd5 {[%clk 0:02:43.1]} 13. Qxd5 {[%clk 0:02:57.7]} 13... O-O {[%clk
0:02:42.4]} 14. Qf3 {[%clk 0:02:47.5]} 14... Ne5 {[%clk 0:02:42.5]} 15. Qe2
{[%clk 0:02:45.9]} 15... Qh4 {[%clk 0:02:20.6]} 16. h3 {[%clk 0:02:09.5]} 16...
Rad8 {[%clk 0:02:12.7]} 17. b3 {[%clk 0:02:09]} 17... Bb4 {[%clk 0:02:09.5]} 18.
Nb1 {[%clk 0:02:08.9]} 18... Nd3 {[%clk 0:02:01.2]} 19. Ba3 {[%clk 0:02:08.6]}
19... Qe7 {[%clk 0:01:48.3]} 20. Bxb4 {[%clk 0:02:08.1]} 20... Qxb4 {[%clk
0:01:43.4]} 21. Rd1 {[%clk 0:02:08.1]} 21... Ne5 {[%clk 0:01:38.2]} 22. Nd2
{[%clk 0:02:06.7]} 22... c5 {[%clk 0:01:35.3]} 23. a3 {[%clk 0:01:38.1]} 23...
Qa5 {[%clk 0:01:30.9]} 24. Nf3 {[%clk 0:01:14.4]} 24... Nxf3+ {[%clk 0:01:31.2]}
25. Qxf3 {[%clk 0:01:15.4]} 25... Rxd1+ {[%clk 0:01:31]} 26. Qxd1 {[%clk
0:01:16]} 26... Rd8 {[%clk 0:01:31.4]} 27. Qc2 {[%clk 0:01:16.9]} 27... Qc7
{[%clk 0:01:10.4]} 28. Rc1 {[%clk 0:01:13.1]} 28... Rc8 {[%clk 0:01:05.6]} 29.
a4 {[%clk 0:01:08.2]} 29... bxa4 {[%clk 0:01:00.2]} 30. bxa4 {[%clk 0:01:08.6]}
30... c4 {[%clk 0:01:01.2]} 31. Qc3 {[%clk 0:01:09.7]} 31... Qc6 {[%clk
0:00:58.3]} 32. a5 {[%clk 0:01:08.5]} 32... Qb5 {[%clk 0:00:54.6]} 33. Rc2
{[%clk 0:00:59.2]} 33... h6 {[%clk 0:00:55.3]} 34. Rb2 {[%clk 0:00:59.9]} 34...
Qd5 {[%clk 0:00:51.6]} 35. Rb6 {[%clk 0:00:58.2]} 35... Rc6 {[%clk 0:00:21.4]}
36. Rb8+ {[%clk 0:00:28.1]} 36... Kh7 {[%clk 0:00:22]} 37. Kf1 {[%clk
0:00:18.2]} 37... Qd1+ {[%clk 0:00:18.2]} 38. Qe1 {[%clk 0:00:17.9]} 38... Qd6
{[%clk 0:00:16.6]} 39. Qb1+ {[%clk 0:00:14.7]} 39... g6 {[%clk 0:00:13.6]} 40.
g3 {[%clk 0:00:14]} 40... c3 {[%clk 0:00:13.3]} 41. Rb4 {[%clk 0:00:03.9]} 41...
c2 {[%clk 0:00:13.2]} 0-1

[Event "*** Titled Tuesday 3|2 Blitz"]
[Site "Chess.com"]
[Date "2016.06.07"]
[Round "7"]
[White "Philofive"]
[Black "bilelou"]
[Result "1-0"]
[WhiteElo "2339"]
[BlackElo "2134"]
[TimeControl "180+2"]
[EndTime "12:28:26 PDT"]
[Termination "Philofive won on time"]

1. d4 {[%clk 0:02:53.6]} 1... d5 {[%clk 0:02:51]} 2. Bg5 {[%clk 0:02:52.4]} 2...
f6 {[%clk 0:02:51.4]} 3. Bd2 {[%clk 0:02:52.4]} 3... Nc6 {[%clk 0:02:51.5]} 4.
e3 {[%clk 0:02:51]} 4... e5 {[%clk 0:02:52.6]} 5. Bb5 {[%clk 0:02:50.8]} 5...
Bd7 {[%clk 0:02:49.9]} 6. dxe5 {[%clk 0:02:27]} 6... fxe5 {[%clk 0:02:37.3]} 7.
Bxc6 {[%clk 0:02:24.2]} 7... Bxc6 {[%clk 0:02:37.7]} 8. Qh5+ {[%clk 0:02:23.2]}
8... Kd7 {[%clk 0:02:28.5]} 9. Qf5+ {[%clk 0:02:17.2]} 9... Ke8 {[%clk
0:02:24.6]} 10. Qxe5+ {[%clk 0:02:11.1]} 10... Be7 {[%clk 0:02:24.4]} 11. Nf3
{[%clk 0:02:05.1]} 11... Nf6 {[%clk 0:02:24.4]} 12. Nd4 {[%clk 0:01:56.5]} 12...
Bd7 {[%clk 0:02:12]} 13. Ne6 {[%clk 0:01:55.5]} 13... Bxe6 {[%clk 0:01:59.4]}
14. Qxe6 {[%clk 0:01:56.5]} 14... Qd7 {[%clk 0:01:55.6]} 15. Qxd7+ {[%clk
0:01:54.6]} 15... Kxd7 {[%clk 0:01:45.7]} 16. Nc3 {[%clk 0:01:42.2]} 16... c6
{[%clk 0:01:46.7]} 17. O-O-O {[%clk 0:01:25.6]} 17... Rae8 {[%clk 0:01:30.9]}
18. f3 {[%clk 0:01:21]} 18... Kc8 {[%clk 0:01:29.6]} 19. Rhe1 {[%clk 0:01:19.7]}
19... Bd6 {[%clk 0:01:28]} 20. g3 {[%clk 0:01:20.8]} 20... Rhf8 {[%clk
0:01:24.2]} 21. Re2 {[%clk 0:01:10.4]} 21... Nd7 {[%clk 0:01:24.4]} 22. Rf1
{[%clk 0:01:09.5]} 22... Ne5 {[%clk 0:01:25.4]} 23. Ref2 {[%clk 0:01:02.1]}
23... Rf7 {[%clk 0:01:25.7]} 24. e4 {[%clk 0:01:01.2]} 24... Bc5 {[%clk
0:01:18.8]} 25. Re2 {[%clk 0:01:00.1]} 25... Rxf3 {[%clk 0:01:18.8]} 26. Rxf3
{[%clk 0:00:58]} 26... Nxf3 {[%clk 0:01:09.8]} 27. exd5 {[%clk 0:00:58.5]} 27...
Rxe2 {[%clk 0:01:09.4]} 28. Nxe2 {[%clk 0:00:58.4]} 28... cxd5 {[%clk
0:01:10.4]} 29. h3 {[%clk 0:00:51.3]} 29... h5 {[%clk 0:01:08.7]} 30. Nf4 {[%clk
0:00:49.7]} 30... h4 {[%clk 0:01:10]} 31. gxh4 {[%clk 0:00:48.1]} 31... Nxh4
{[%clk 0:01:11]} 32. Nxd5 {[%clk 0:00:48.8]} 32... Nf3 {[%clk 0:01:12.6]} 33.
Bc3 {[%clk 0:00:44.5]} 33... Ng1 {[%clk 0:01:06.8]} 34. Bxg7 {[%clk 0:00:37.8]}
34... Nxh3 {[%clk 0:00:56.9]} 35. c3 {[%clk 0:00:39]} 35... Nf2 {[%clk
0:00:57.9]} 36. Kc2 {[%clk 0:00:38.7]} 36... Ng4 {[%clk 0:00:58.2]} 37. b4
{[%clk 0:00:36.1]} 37... Ne3+ {[%clk 0:00:52.5]} 38. Nxe3 {[%clk 0:00:36.2]}
38... Bxe3 {[%clk 0:00:54.1]} 39. Bd4 {[%clk 0:00:37.2]} 39... Bxd4 {[%clk
0:00:52.3]} 40. cxd4 {[%clk 0:00:38.1]} 40... Kd7 {[%clk 0:00:53.9]} 41. Kd3
{[%clk 0:00:39.3]} 41... Kd6 {[%clk 0:00:55.2]} 42. Ke4 {[%clk 0:00:38.8]} 42...
a6 {[%clk 0:00:56.6]} 43. d5 {[%clk 0:00:39.2]} 43... b6 {[%clk 0:00:57.5]} 44.
Kd4 {[%clk 0:00:40.2]} 44... a5 {[%clk 0:00:57.9]} 45. b5 {[%clk 0:00:40.3]}
45... Kd7 {[%clk 0:00:55.9]} 46. Ke5 {[%clk 0:00:40]} 46... Ke7 {[%clk
0:00:57.3]} 47. d6+ {[%clk 0:00:40.4]} 47... Kd7 {[%clk 0:00:58.9]} 48. Kd5
{[%clk 0:00:41.7]} 48... Kc8 {[%clk 0:01:00.5]} 49. Kc6 {[%clk 0:00:42.1]} 49...
Kd8 {[%clk 0:01:02]} 50. Kxb6 {[%clk 0:00:43.3]} 50... Kd7 {[%clk 0:00:58.8]}
51. Ka7 {[%clk 0:00:43.9]} 51... Kxd6 {[%clk 0:00:59.8]} 52. b6 {[%clk
0:00:45.1]} 52... Kc6 {[%clk 0:01:00.6]} 53. b7 {[%clk 0:00:46.3]} 53... a4
{[%clk 0:01:01.6]} 54. b8=Q {[%clk 0:00:47.2]} 1-0

[Event "*** Titled Tuesday 3|2 Blitz"]
[Site "Chess.com"]
[Date "2016.06.07"]
[Round "7"]
[White "lukas_111111"]
[Black "jeaston1"]
[Result "1-0"]
[WhiteElo "2250"]
[BlackElo "2029"]
[TimeControl "180+2"]
[EndTime "12:28:30 PDT"]
[Termination "lukas_111111 won by checkmate"]

1. e4 {[%clk 0:03:00.3]} 1... c5 {[%clk 0:03:00.5]} 2. Nf3 {[%clk 0:02:59.9]}
2... Nc6 {[%clk 0:03:01.5]} 3. Bb5 {[%clk 0:03:00.2]} 3... g6 {[%clk 0:03:02.3]}
4. Bxc6 {[%clk 0:03:00.2]} 4... bxc6 {[%clk 0:03:02.5]} 5. O-O {[%clk
0:03:00.6]} 5... Bg7 {[%clk 0:03:03.7]} 6. Re1 {[%clk 0:03:01.6]} 6... d5 {[%clk
0:03:02.4]} 7. e5 {[%clk 0:03:01]} 7... Nh6 {[%clk 0:03:02.6]} 8. c3 {[%clk
0:03:00.3]} 8... O-O {[%clk 0:03:02.9]} 9. d4 {[%clk 0:03:01.1]} 9... cxd4
{[%clk 0:03:04.1]} 10. cxd4 {[%clk 0:03:00.7]} 10... Nf5 {[%clk 0:03:03.7]} 11.
Bf4 {[%clk 0:02:53.9]} 11... e6 {[%clk 0:02:59]} 12. Qd2 {[%clk 0:02:50]} 12...
Qb6 {[%clk 0:02:52.6]} 13. Nc3 {[%clk 0:02:46.8]} 13... Rb8 {[%clk 0:02:42]} 14.
Na4 {[%clk 0:02:43.8]} 14... Qb5 {[%clk 0:02:42]} 15. b3 {[%clk 0:02:41.9]}
15... Qb4 {[%clk 0:02:38.4]} 16. Nc5 {[%clk 0:02:26.1]} 16... a5 {[%clk
0:02:11.1]} 17. a3 {[%clk 0:02:12.2]} 17... Qxd2 {[%clk 0:02:09.7]} 18. Bxd2
{[%clk 0:02:12]} 18... Rb5 {[%clk 0:02:07.3]} 19. a4 {[%clk 0:02:08.5]} 19...
Rb8 {[%clk 0:02:02.2]} 20. Bxa5 {[%clk 0:02:08]} 20... f6 {[%clk 0:02:01.5]} 21.
Bc7 {[%clk 0:02:07]} 21... Ra8 {[%clk 0:01:59.3]} 22. exf6 {[%clk 0:02:07.4]}
22... Bxf6 {[%clk 0:01:59.5]} 23. Rad1 {[%clk 0:02:03.4]} 23... Kf7 {[%clk
0:01:56.9]} 24. Be5 {[%clk 0:01:52.4]} 24... Re8 {[%clk 0:01:54.4]} 25. Bxf6
{[%clk 0:01:51.8]} 25... Kxf6 {[%clk 0:01:55.5]} 26. Ne5 {[%clk 0:01:52.7]}
26... Re7 {[%clk 0:01:51.1]} 27. Nxc6 {[%clk 0:01:48.9]} 27... Rc7 {[%clk
0:01:52.3]} 28. Ne5 {[%clk 0:01:18.8]} 28... Nxd4 {[%clk 0:01:51.9]} 29. Rxd4
{[%clk 0:01:10]} 29... Rxc5 {[%clk 0:01:51.5]} 30. Rf4+ {[%clk 0:01:04.6]} 30...
Kg7 {[%clk 0:01:48.9]} 31. Rf7+ {[%clk 0:01:03.7]} 31... Kg8 {[%clk 0:01:49.9]}
32. Re7 {[%clk 0:01:02.6]} 32... Rb8 {[%clk 0:01:46.5]} 33. Re8+ {[%clk
0:00:59.3]} 33... Kg7 {[%clk 0:01:47.1]} 34. Nd7 {[%clk 0:00:57.4]} 34... Bxd7
{[%clk 0:01:23.5]} 35. Rxb8 {[%clk 0:00:57.3]} 35... Kf6 {[%clk 0:01:19.3]} 36.
Rb7 {[%clk 0:00:46.5]} 36... Ke7 {[%clk 0:01:20.1]} 37. b4 {[%clk 0:00:44.7]}
37... Rc4 {[%clk 0:01:20.4]} 38. a5 {[%clk 0:00:40.5]} 38... Kd6 {[%clk
0:01:21.7]} 39. a6 {[%clk 0:00:38.2]} 39... Bc6 {[%clk 0:01:22.3]} 40. Rxh7
{[%clk 0:00:35.4]} 40... Rxb4 {[%clk 0:01:22.3]} 41. Ra1 {[%clk 0:00:32.7]}
41... Kc5 {[%clk 0:01:12.3]} 42. a7 {[%clk 0:00:32.3]} 42... Kb6 {[%clk
0:01:13.1]} 43. Rh8 {[%clk 0:00:23.2]} 43... d4 {[%clk 0:00:45.1]} 44. Rb8+
{[%clk 0:00:22]} 44... Kc5 {[%clk 0:00:43.2]} 45. Rc8 {[%clk 0:00:22.2]} 45...
d3 {[%clk 0:00:32.8]} 46. Rxc6+ {[%clk 0:00:22.6]} 46... Kxc6 {[%clk 0:00:34]}
47. a8=Q+ {[%clk 0:00:22.7]} 47... Kd6 {[%clk 0:00:35.9]} 48. Qa3 {[%clk
0:00:22.2]} 48... Kc5 {[%clk 0:00:36.6]} 49. Qc3+ {[%clk 0:00:19.2]} 49... Rc4
{[%clk 0:00:36.9]} 50. Qe5+ {[%clk 0:00:19.2]} 50... Kb4 {[%clk 0:00:30.6]} 51.
Qa5+ {[%clk 0:00:18.4]} 51... Kb3 {[%clk 0:00:31.3]} 52. Qa3+ {[%clk 0:00:16.3]}
52... Kc2 {[%clk 0:00:29.6]} 53. Qc1+ {[%clk 0:00:14.7]} 53... Kb3 {[%clk
0:00:30.4]} 54. Rb1+ {[%clk 0:00:13.8]} 54... Ka2 {[%clk 0:00:26.6]} 55. Qb2#
{[%clk 0:00:03.4]} 1-0

[Event "*** Titled Tuesday 3|2 Blitz"]
[Site "Chess.com"]
[Date "2016.06.07"]
[Round "7"]
[White "profofchess"]
[Black "eltenedor"]
[Result "1-0"]
[WhiteElo "2315"]
[BlackElo "2046"]
[TimeControl "180+2"]
[EndTime "12:29:00 PDT"]
[Termination "profofchess won on time"]

1. e4 {[%clk 0:03:01.9]} 1... d5 {[%clk 0:01:59.5]} 2. exd5 {[%clk 0:02:59.9]}
2... Nf6 {[%clk 0:01:59.3]} 3. Nf3 {[%clk 0:02:59.8]} 3... Nxd5 {[%clk
0:01:57.6]} 4. d4 {[%clk 0:02:59.9]} 4... g6 {[%clk 0:01:56.5]} 5. c4 {[%clk
0:02:58]} 5... Nb6 {[%clk 0:01:56.6]} 6. h3 {[%clk 0:02:59.2]} 6... Bg7 {[%clk
0:01:57.1]} 7. Nc3 {[%clk 0:02:59.2]} 7... c5 {[%clk 0:01:57]} 8. d5 {[%clk
0:02:57.4]} 8... O-O {[%clk 0:01:57.3]} 9. Be2 {[%clk 0:02:56.9]} 9... e6 {[%clk
0:01:55.1]} 10. d6 {[%clk 0:02:38.4]} 10... Bd7 {[%clk 0:01:42.8]} 11. Be3
{[%clk 0:02:35.9]} 11... Na6 {[%clk 0:01:42.6]} 12. O-O {[%clk 0:02:34.5]} 12...
Rc8 {[%clk 0:01:42]} 13. Qd2 {[%clk 0:02:16.6]} 13... Rc6 {[%clk 0:01:34.7]} 14.
Rad1 {[%clk 0:02:13.9]} 14... Qb8 {[%clk 0:01:20.7]} 15. Bf4 {[%clk 0:01:51.2]}
15... f6 {[%clk 0:01:19.8]} 16. Rfe1 {[%clk 0:01:50.4]} 16... Rd8 {[%clk
0:00:57.4]} 17. b3 {[%clk 0:01:14.9]} 17... e5 {[%clk 0:00:55.8]} 18. Bg3 {[%clk
0:01:15.7]} 18... Be6 {[%clk 0:00:53.3]} 19. Nb5 {[%clk 0:01:16.4]} 19... Nc8
{[%clk 0:00:50.1]} 20. Bd3 {[%clk 0:00:47.9]} 20... Rb6 {[%clk 0:00:36.6]} 21.
Qe2 {[%clk 0:00:45.7]} 21... Nb4 {[%clk 0:00:35.2]} 22. Bb1 {[%clk 0:00:46.3]}
22... Bf7 {[%clk 0:00:34.3]} 23. a3 {[%clk 0:00:45.1]} 23... Nc6 {[%clk
0:00:34.2]} 24. d7 {[%clk 0:00:45.6]} 24... N8e7 {[%clk 0:00:34.6]} 25. h4
{[%clk 0:00:24]} 25... a6 {[%clk 0:00:25.5]} 26. Nd6 {[%clk 0:00:24.3]} 26...
Be6 {[%clk 0:00:25.9]} 27. Ne4 {[%clk 0:00:24.1]} 27... Rxd7 {[%clk 0:00:22.8]}
28. Nxc5 {[%clk 0:00:25.2]} 28... Rxd1 {[%clk 0:00:22.1]} 29. Rxd1 {[%clk
0:00:26.1]} 29... Bf7 {[%clk 0:00:23]} 30. h5 {[%clk 0:00:23.5]} 30... Qc7
{[%clk 0:00:21.7]} 31. b4 {[%clk 0:00:23.1]} 31... Nd8 {[%clk 0:00:18.4]} 32.
Rd7 {[%clk 0:00:23.4]} 32... Qc8 {[%clk 0:00:18.3]} 33. Rxe7 {[%clk 0:00:24.2]}
33... Rd6 {[%clk 0:00:17.8]} 34. hxg6 {[%clk 0:00:23]} 34... hxg6 {[%clk
0:00:17.9]} 35. Nh4 {[%clk 0:00:23.1]} 35... Kh7 {[%clk 0:00:13.7]} 36. Rxf7
{[%clk 0:00:22.8]} 36... Nxf7 {[%clk 0:00:13.4]} 37. Bxg6+ {[%clk 0:00:23.8]}
37... Kg8 {[%clk 0:00:14.7]} 38. Nf5 {[%clk 0:00:21.2]} 38... Rd8 {[%clk
0:00:12.1]} 39. Ne7+ {[%clk 0:00:21.5]} 39... Kf8 {[%clk 0:00:11.9]} 40. Nxc8
{[%clk 0:00:22.3]} 40... Rxc8 {[%clk 0:00:13.8]} 41. Qh5 {[%clk 0:00:20.1]}
41... Ng5 {[%clk 0:00:10.1]} 42. Bxe5 {[%clk 0:00:16.4]} 42... b6 {[%clk
0:00:07.2]} 43. Nd7+ {[%clk 0:00:14]} 43... Ke7 {[%clk 0:00:06.9]} 44. Nxb6
{[%clk 0:00:12.9]} 44... Rc6 {[%clk 0:00:07.4]} 45. Nd5+ {[%clk 0:00:13.6]}
45... Ke6 {[%clk 0:00:07.5]} 46. Bf4 {[%clk 0:00:13.6]} 46... Rxc4 {[%clk
0:00:05.5]} 47. Bxg5 {[%clk 0:00:13.8]} 47... fxg5 {[%clk 0:00:06]} 48. Qxg5
{[%clk 0:00:15]} 48... Be5 {[%clk 0:00:06.1]} 49. Qf5+ {[%clk 0:00:15.5]} 49...
Kd6 {[%clk 0:00:06]} 50. Ne3 {[%clk 0:00:15.2]} 50... Rc1+ {[%clk 0:00:05.7]}
51. Nf1 {[%clk 0:00:16.5]} 51... Rc4 {[%clk 0:00:03.1]} 52. g3 {[%clk 0:00:16]}
52... Bd4 {[%clk 0:00:02.4]} 53. Kg2 {[%clk 0:00:17.1]} 1-0

[Event "*** Titled Tuesday 3|2 Blitz"]
[Site "Chess.com"]
[Date "2016.06.07"]
[Round "7"]
[White "Lukianoo"]
[Black "E-Shaposhnikov"]
[Result "0-1"]
[WhiteElo "2620"]
[BlackElo "2604"]
[TimeControl "180+2"]
[EndTime "12:29:07 PDT"]
[Termination "E-Shaposhnikov won on time"]

1. e4 {[%clk 0:02:42.2]} 1... c5 {[%clk 0:03:00.3]} 2. b3 {[%clk 0:02:41.5]}
2... Nf6 {[%clk 0:02:59.2]} 3. e5 {[%clk 0:02:42.3]} 3... Nd5 {[%clk 0:02:59.4]}
4. Nc3 {[%clk 0:02:40.9]} 4... e6 {[%clk 0:02:49.5]} 5. Nxd5 {[%clk 0:02:38.9]}
5... exd5 {[%clk 0:02:51.4]} 6. Qf3 {[%clk 0:02:37.5]} 6... Nc6 {[%clk
0:02:49.5]} 7. Qxd5 {[%clk 0:02:34.2]} 7... Qe7 {[%clk 0:02:43.9]} 8. Nf3 {[%clk
0:02:29.2]} 8... Nb4 {[%clk 0:02:41.6]} 9. Qc4 {[%clk 0:02:26]} 9... b6 {[%clk
0:02:35.5]} 10. a3 {[%clk 0:02:20.5]} 10... d5 {[%clk 0:02:32.9]} 11. Qc3 {[%clk
0:02:18.5]} 11... d4 {[%clk 0:02:33.2]} 12. Bb5+ {[%clk 0:02:12.7]} 12... Bd7
{[%clk 0:02:34.1]} 13. Bxd7+ {[%clk 0:02:10.7]} 13... Qxd7 {[%clk 0:02:35.4]}
14. Qb2 {[%clk 0:02:08.6]} 14... Nd5 {[%clk 0:02:36]} 15. d3 {[%clk 0:02:05.2]}
15... Be7 {[%clk 0:02:34.3]} 16. O-O {[%clk 0:02:04.3]} 16... O-O {[%clk
0:02:31]} 17. Bd2 {[%clk 0:02:03.3]} 17... Rac8 {[%clk 0:02:28.8]} 18. Rfe1
{[%clk 0:01:56.9]} 18... Rc6 {[%clk 0:02:27.5]} 19. Re4 {[%clk 0:01:49.2]} 19...
Rg6 {[%clk 0:02:25.1]} 20. Kh1 {[%clk 0:01:44.4]} 20... Re8 {[%clk 0:02:19]} 21.
Rae1 {[%clk 0:01:40.5]} 21... Bd8 {[%clk 0:02:19.7]} 22. b4 {[%clk 0:01:35.7]}
22... Bc7 {[%clk 0:02:14.2]} 23. Qb3 {[%clk 0:01:30.5]} 23... Qc6 {[%clk
0:02:04.5]} 24. Qc4 {[%clk 0:01:26.1]} 24... Rge6 {[%clk 0:02:05.5]} 25. Qa6
{[%clk 0:01:17.9]} 25... Bb8 {[%clk 0:02:00.1]} 26. h3 {[%clk 0:01:14.6]} 26...
h6 {[%clk 0:01:58.2]} 27. Qc4 {[%clk 0:01:11.9]} 27... a6 {[%clk 0:01:57.7]} 28.
Qxa6 {[%clk 0:01:07.3]} 28... Bc7 {[%clk 0:01:51.9]} 29. Qc4 {[%clk 0:01:02.1]}
29... Ra8 {[%clk 0:01:49.5]} 30. b5 {[%clk 0:00:59]} 30... Qb7 {[%clk
0:01:50.7]} 31. a4 {[%clk 0:00:57.7]} 31... Rc8 {[%clk 0:01:48.8]} 32. c3 {[%clk
0:00:49.7]} 32... dxc3 {[%clk 0:01:39.9]} 33. Bxc3 {[%clk 0:00:48.9]} 33... Bd8
{[%clk 0:01:41.5]} 34. Bd2 {[%clk 0:00:45.5]} 34... Be7 {[%clk 0:01:42.2]} 35.
Qb3 {[%clk 0:00:40.8]} 35... Rd8 {[%clk 0:01:40.3]} 36. Rc1 {[%clk 0:00:35.9]}
36... Rg6 {[%clk 0:01:36.8]} 37. Rg4 {[%clk 0:00:33.9]} 37... Rxg4 {[%clk
0:01:34.5]} 38. hxg4 {[%clk 0:00:35.8]} 38... Qd7 {[%clk 0:01:36.4]} 39. Qc4
{[%clk 0:00:34.4]} 39... Ra8 {[%clk 0:01:36.6]} 40. Ra1 {[%clk 0:00:29.7]} 40...
Nb4 {[%clk 0:01:36.8]} 41. Bxb4 {[%clk 0:00:27.3]} 41... cxb4 {[%clk 0:01:37.3]}
42. Qc6 {[%clk 0:00:27.6]} 42... Qd8 {[%clk 0:01:24.4]} 43. e6 {[%clk
0:00:28.3]} 43... fxe6 {[%clk 0:01:19.9]} 44. Qxe6+ {[%clk 0:00:28.7]} 44... Kh8
{[%clk 0:01:20.3]} 45. Ne5 {[%clk 0:00:28.5]} 45... Qd4 {[%clk 0:01:18.5]} 46.
Rc1 {[%clk 0:00:25.4]} 46... Bf6 {[%clk 0:01:16]} 47. Rc8+ {[%clk 0:00:18.1]}
47... Rxc8 {[%clk 0:01:15.2]} 48. Qxc8+ {[%clk 0:00:20]} 48... Kh7 {[%clk
0:01:08.8]} 49. Qf5+ {[%clk 0:00:20.5]} 49... Kh8 {[%clk 0:01:09.8]} 50. Ng6+
{[%clk 0:00:18.5]} 50... Kg8 {[%clk 0:01:10.2]} 51. Qe6+ {[%clk 0:00:18.8]}
51... Kh7 {[%clk 0:01:09]} 52. Nf8+ {[%clk 0:00:19.7]} 52... Kh8 {[%clk
0:01:08.9]} 53. Ng6+ {[%clk 0:00:16.5]} 53... Kh7 {[%clk 0:01:08.6]} 54. Qf5
{[%clk 0:00:12.1]} 54... Kg8 {[%clk 0:01:00.5]} 55. f4 {[%clk 0:00:11]} 55... b3
{[%clk 0:00:58.7]} 56. Qe6+ {[%clk 0:00:11]} 56... Kh7 {[%clk 0:00:59.9]} 57.
Nf8+ {[%clk 0:00:11.6]} 57... Kh8 {[%clk 0:01:00.1]} 58. Ng6+ {[%clk 0:00:12.7]}
58... Kh7 {[%clk 0:01:00]} 59. Qxb3 {[%clk 0:00:13.3]} 59... Kxg6 {[%clk
0:00:56.9]} 60. f5+ {[%clk 0:00:06.5]} 60... Kh7 {[%clk 0:00:53]} 61. Qc4 {[%clk
0:00:06.3]} 61... Qa1+ {[%clk 0:00:47.4]} 62. Kh2 {[%clk 0:00:06]} 62... Be5+
{[%clk 0:00:49.3]} 63. g3 {[%clk 0:00:07.3]} 63... Qb2+ {[%clk 0:00:47.4]} 64.
Kh3 {[%clk 0:00:08.4]} 64... Qf2 {[%clk 0:00:49]} 0-1